bitfinex/quotes_SOLUSD_20250506
["timestamp","ask_amount","ask_price","bid_price","bid_amount"]
[1746517481155,1.5746,145.35,145.3,20.24231245]
[1746517481156,14.62376916,145.33,145.3,20.24231245]
[1746517481357,14.62376916,145.34,145.3,20.24231245]
[1746517481733,1.5746,145.35,145.3,20.24231245]
[1746517481960,14.62376916,145.34,145.3,20.24231245]
[1746517483164,14.62376916,145.34,145.3,34.86608161]
[1746517483861,14.62376916,145.34,145.3,20.24231245]
[1746517484358,1.5746,145.35,145.33,14.62376916]
[1746517484650,18.64964886,145.38,145.34,14.62376916]
[1746517484830,18.64964886,145.38,145.37,14.62376916]
[1746517485347,1.532,145.39,145.37,14.62376916]
[1746517485856,1.532,145.39,145.36,21.50311457]
[1746517489267,18.64964886,145.4,145.37,14.62376916]
[1746517489968,18.64964886,145.4,145.37,21.50262458]
[1746517490856,33.27341802,145.4,145.37,6.87885542]
[1746517492666,1.5708,145.43,145.38,14.62376916]
[1746517492965,18.64964886,145.42,145.4,14.62376916]
[1746517493168,18.64964886,145.42,145.4,27.98376916]
[1746517496081,18.64964886,145.42,145.4,13.36]
[1746517496944,16.19456916,145.43,145.4,20.23739674]
[1746517498648,33.27341802,145.44,145.4,34.8611659]
[1746517499063,26.0,145.45,145.41,14.62376916]
[1746517499278,40.62376916,145.45,145.41,14.62376916]
[1746517500274,14.62376916,145.45,145.41,14.62376916]
[1746517500667,14.62376916,145.45,145.42,6.8766332]
[1746517502276,14.62376916,145.44,145.41,6.87693037]
[1746517502481,14.62376916,145.43,145.4,20.23739671]
[1746517503979,33.27341802,145.44,145.4,34.86116587]
[1746517504572,14.62376916,145.46,145.42,6.8766332]
[1746517504759,18.64964886,145.45,145.42,21.50040236]
[1746517505285,14.62376916,145.46,145.42,21.50040236]
[1746517505587,16.20386916,145.47,145.43,14.62376916]
[1746517506982,14.62376916,145.46,145.42,21.50040236]
[1746517507479,14.62376916,145.45,145.42,6.8766332]
[1746517509081,14.62376916,145.44,145.42,6.8766332]
[1746517509280,14.62376916,145.43,145.4,33.83715726]
[1746517509592,14.62376916,145.42,145.4,33.83715726]
[1746517509877,14.62376916,145.42,145.4,20.23715726]
[1746517511262,14.62376916,145.42,145.4,13.36]
[1746517513895,14.62376916,145.41,145.38,6.87850825]
[1746517514093,18.64964886,145.41,145.39,13.36]
[1746517514399,14.62376916,145.4,145.38,13.36]
[1746517514601,14.62376916,145.39,145.38,13.36]
[1746517515300,29.24753832,145.39,145.38,13.36]
[1746517515492,14.62376916,145.39,145.38,13.36]
[1746517517405,14.62376916,145.4,145.38,20.23852524]
[1746517518199,1.6393,145.42,145.38,20.23852524]
[1746517519004,14.62376916,145.4,145.38,20.23852524]
[1746517519203,1.6393,145.42,145.38,20.23852524]
[1746517519392,14.62376916,145.4,145.38,20.23852524]
[1746517520003,1.6393,145.42,145.38,20.23852524]
[1746517520199,16.26306916,145.42,145.38,20.23852524]
[1746517520710,14.62376916,145.41,145.38,20.23852524]
[1746517521085,1.6393,145.42,145.38,20.23852524]
[1746517521291,14.62376916,145.41,145.38,20.23852524]
[1746517522302,16.26306916,145.42,145.38,20.23852524]
[1746517523003,14.62376916,145.42,145.38,20.23852524]
[1746517523190,14.62376916,145.42,145.38,34.8622944]
[1746517524399,14.62376916,145.4,145.38,20.23852524]
[1746517524602,14.62376916,145.39,145.38,20.23852524]
[1746517525804,14.62376916,145.4,145.38,20.23852524]
[1746517526003,14.62376916,145.41,145.38,20.23852524]
[1746517526793,18.64964886,145.42,145.4,14.62376916]
[1746517527198,33.27341802,145.45,145.41,14.62376916]
[1746517527804,18.64964886,145.45,145.42,14.62376916]
[1746517528187,18.64964886,145.45,145.43,13.36]
[1746517529096,33.27341802,145.45,145.43,13.36]
[1746517529703,40.14871009,145.45,145.43,13.36]
[1746517529906,14.62376916,145.44,145.43,13.36]
[1746517530207,65.93471802,145.44,145.39,13.36]
[1746517530407,14.62376916,145.41,145.39,13.36]
[1746517531189,21.50088164,145.41,145.39,13.36]
[1746517531395,14.62376916,145.41,145.38,13.36]
[1746517531910,18.64964886,145.41,145.38,36.72283349]
[1746517533312,18.64964886,145.41,145.38,20.23850722]
[1746517533814,42.01248235,145.41,145.38,20.23850722]
[1746517533995,18.64964886,145.41,145.38,13.36]
[1746517534697,18.64964886,145.41,145.38,20.23837024]
[1746517534902,18.64964886,145.41,145.38,43.60120373]
[1746517535215,1.5017,145.46,145.4,23.36283349]
[1746517535510,18.64964886,145.45,145.42,23.36283349]
[1746517535715,18.64964886,145.45,145.41,23.36283349]
[1746517536618,25.52499236,145.45,145.41,23.36283349]
[1746517537110,48.88782585,145.45,145.41,23.36283349]
[1746517537616,48.88782585,145.45,145.4,30.24007215]
[1746517539210,23.36283349,145.43,145.38,57.20101065]
[1746517539392,23.36283349,145.43,145.38,43.60101065]
[1746517541018,48.88854799,145.44,145.39,23.36283349]
[1746517541210,42.01248235,145.44,145.39,23.36283349]
[1746517541399,18.64964886,145.44,145.4,23.36283349]
[1746517541796,18.64964886,145.44,145.39,23.36283349]
[1746517542522,42.01248235,145.44,145.4,6.87757909]
[1746517544196,42.01248235,145.44,145.41,13.36]
[1746517544401,18.64964886,145.44,145.41,13.36]
[1746517544598,42.01248235,145.42,145.41,13.36]
[1746517545819,48.88911555,145.42,145.41,13.36]
[1746517546132,18.64964886,145.41,145.37,20.21878796]
[1746517546323,23.36283349,145.38,145.37,20.21878796]
[1746517546924,23.36283349,145.39,145.37,20.21878796]
[1746517548520,23.36283349,145.4,145.37,20.21878796]
[1746517550924,23.36283349,145.38,145.37,13.34]
[1746517553843,14.60877385,145.38,145.37,13.34]
[1746517557939,14.60877385,145.39,145.37,13.34]
[1746517560843,18.64964886,145.42,145.38,14.60877385]
[1746517561050,16.25277385,145.44,145.4,14.60877385]
[1746517561340,42.25277385,145.44,145.4,14.60877385]
[1746517561542,14.60877385,145.43,145.39,14.60877385]
[1746517561743,14.60877385,145.42,145.38,28.20877385]
[1746517562836,14.60877385,145.42,145.39,6.87805213]
[1746517563025,14.60877385,145.43,145.39,21.48682598]
[1746517564739,14.60877385,145.43,145.39,6.87805213]
[1746517565040,14.60877385,145.43,145.39,21.48682598]
[1746517566247,16.25277385,145.44,145.4,14.60877385]
[1746517566444,14.60877385,145.44,145.4,14.60877385]
[1746517568149,6.0014,145.47,145.4,20.47757909]
[1746517568327,18.64964886,145.47,145.44,14.60877385]
[1746517568741,33.25842271,145.47,145.43,27.96877385]
[1746517569238,1.5228,145.48,145.44,14.60877385]
[1746517570224,16.13157385,145.48,145.44,21.48431143]
[1746517570739,14.60877385,145.47,145.44,6.87553758]
[1746517571543,14.60877385,145.47,145.44,21.48431143]
[1746517572347,16.13157385,145.48,145.44,21.48431143]
[1746517573050,16.13157385,145.48,145.44,6.87553758]
[1746517573354,14.60877385,145.47,145.44,6.87553758]
[1746517574658,14.60877385,145.48,145.44,21.48431143]
[1746517575054,14.60877385,145.48,145.44,6.87553758]
[1746517575357,14.60877385,145.47,145.44,6.87553758]
[1746517575730,25.52309981,145.49,145.44,6.87553758]
[1746517575927,14.60877385,145.47,145.44,6.87553758]
[1746517576472,14.60877385,145.47,145.43,48.44479382]
[1746517576751,14.60877385,145.44,145.43,26.96]
[1746517576953,14.60877385,145.44,145.43,13.36]
[1746517577544,14.60877385,145.45,145.43,13.36]
[1746517577853,8.53790965,145.47,145.43,34.84492279]
[1746517577854,16.27227385,145.47,145.43,34.84492279]
[1746517578558,14.60877385,145.48,145.43,34.84492279]
[1746517578761,14.60877385,145.48,145.44,14.60877385]
[1746517579540,14.60877385,145.45,145.43,13.36]
[1746517579760,14.60877385,145.44,145.43,13.36]
[1746517580338,14.60877385,145.44,145.43,20.23616035]
[1746517581648,14.60877385,145.44,145.43,13.36]
[1746517585863,33.25842271,145.44,145.4,6.87743638]
[1746517586065,14.60877385,145.41,145.4,13.34]
[1746517587051,14.60877385,145.41,145.4,20.21757909]
[1746517587247,14.60877385,145.42,145.4,20.21757909]
[1746517587753,18.64964886,145.44,145.4,13.34]
[1746517587754,14.60877385,145.41,145.4,13.34]
[1746517593275,14.60877385,145.42,145.4,20.21757909]
[1746517593871,14.60877385,145.41,145.4,20.21757909]
[1746517595570,14.60877385,145.42,145.4,20.21757909]
[1746517597890,14.60877385,145.42,145.4,13.34]
[1746517598270,14.60877385,145.41,145.4,13.34]
[1746517598976,1.5055,145.46,145.4,34.82620641]
[1746517599180,18.64964886,145.45,145.43,14.60877385]
[1746517599483,18.64964886,145.47,145.44,14.60877385]
[1746517599681,18.64964886,145.47,145.45,14.60877385]
[1746517600888,18.64964886,145.47,145.44,14.60877385]
[1746517601292,18.64964886,145.47,145.44,21.48435395]
[1746517602691,14.60877385,145.48,145.44,21.48435395]
[1746517603674,33.25842271,145.49,145.45,14.60877385]
[1746517603885,33.25842271,145.49,145.45,27.94877385]
[1746517604190,14.60877385,145.48,145.45,13.34]
[1746517604695,14.60877385,145.48,145.45,20.21513033]
[1746517607597,14.60877385,145.47,145.45,20.21513033]
[1746517608999,14.60877385,145.48,145.45,20.21513033]
[1746517609298,33.25842271,145.49,145.45,34.82390418]
[1746517610295,1.5552,145.5,145.48,14.60877385]
[1746517610987,1.5552,145.5,145.47,14.60877385]
[1746517611787,1.5552,145.5,145.47,21.48272358]
[1746517611988,18.64964886,145.5,145.47,21.48272358]
[1746517612597,14.60877385,145.53,145.49,14.60877385]
[1746517612784,18.64964886,145.52,145.49,14.60877385]
[1746517612985,1.5695,145.54,145.49,14.60877385]
[1746517613192,16.17827385,145.54,145.5,27.96877385]
[1746517613590,1.5695,145.54,145.5,27.96877385]
[1746517613797,16.17827385,145.54,145.5,34.84115816]
[1746517614405,16.17827385,145.54,145.5,20.23238431]
[1746517614882,14.60877385,145.53,145.5,20.23238431]
[1746517616106,14.60877385,145.52,145.5,13.36]
[1746517617988,14.60877385,145.51,145.5,13.36]
[1746517618385,14.60877385,145.52,145.5,13.36]
[1746517619208,18.64964886,145.53,145.5,13.36]
[1746517619500,14.60877385,145.52,145.5,13.36]
[1746517619701,25.52118895,145.53,145.5,13.36]
[1746517619907,14.60877385,145.51,145.5,13.36]
[1746517620509,14.60877385,145.52,145.5,13.36]
[1746517620690,14.60877385,145.52,145.5,20.23282522]
[1746517620892,14.60877385,145.53,145.5,20.23282522]
[1746517621713,14.60877385,145.51,145.5,13.36]
[1746517624312,14.60877385,145.52,145.5,20.23285223]
[1746517625509,14.60877385,145.53,145.5,20.23285223]
[1746517626213,18.64964886,145.55,145.5,20.23285223]
[1746517626413,14.60877385,145.53,145.5,20.23285223]
[1746517628411,14.60877385,145.52,145.5,20.23285223]
[1746517629109,14.60877385,145.51,145.5,13.34]
[1746517637705,18.64964886,145.53,145.5,13.34]
[1746517638009,14.60877385,145.51,145.5,13.34]
[1746517638829,14.60877385,145.52,145.5,13.34]
[1746517640619,18.64964886,145.53,145.5,13.34]
[1746517640823,23.10985087,145.56,145.51,21.48088408]
[1746517641127,18.64964886,145.59,145.55,14.60877385]
[1746517641324,18.64964886,145.59,145.55,27.98877385]
[1746517642416,1.5825,145.6,145.57,14.60877385]
[1746517642722,1.5825,145.6,145.55,26.98]
[1746517642723,1.5825,145.6,145.58,14.60877385]
[1746517642928,20.92687385,145.62,145.58,14.60877385]
[1746517643114,6.3181,145.62,145.58,14.60877385]
[1746517643306,20.92687385,145.62,145.58,14.60877385]
[1746517643509,27.79419823,145.62,145.58,14.60877385]
[1746517643734,36.48180256,145.62,145.58,23.29637818]
[1746517644232,13.18542438,145.62,145.58,23.29637818]
[1746517644541,36.48180256,145.62,145.58,23.29637818]
[1746517645030,6.86705339,145.63,145.6,23.29637818]
[1746517645211,30.16343157,145.63,145.6,36.67637818]
[1746517645412,23.29637818,145.62,145.6,13.38]
[1746517645612,48.81308043,145.63,145.6,13.38]
[1746517645911,23.29637818,145.61,145.6,13.38]
[1746517646117,18.64964886,145.62,145.6,13.38]
[1746517646325,41.94602704,145.62,145.6,13.38]
[1746517647461,48.81353132,145.62,145.6,13.38]
[1746517647623,23.29637818,145.61,145.6,13.38]
[1746517647815,41.94602704,145.61,145.6,13.38]
[1746517648738,41.94602704,145.61,145.56,13.38]
[1746517648921,23.29637818,145.58,145.56,13.38]
[1746517649640,30.16589968,145.58,145.56,13.38]
[1746517651543,41.94602704,145.57,145.56,13.38]
[1746517651748,41.94602704,145.57,145.49,43.76931411]
[1746517651749,48.81557433,145.57,145.49,43.76931411]
[1746517651940,48.81557433,145.57,145.52,13.38]
[1746517651941,25.51919615,145.57,145.52,13.38]
[1746517652121,41.94602704,145.53,145.52,13.38]
[1746517653729,48.81746248,145.53,145.52,13.38]
[1746517663354,41.94602704,145.53,145.52,13.38]
[1746517663655,48.81746248,145.53,145.52,13.38]
[1746517665451,23.29637818,145.53,145.52,13.38]
[1746517665655,6.87116157,145.54,145.52,13.38]
[1746517665656,30.16753975,145.54,145.52,13.38]
[1746517665956,14.57582322,145.54,145.52,13.38]
[1746517667329,14.57582322,145.53,145.52,13.38]
[1746517669571,14.57582322,145.54,145.52,13.38]
[1746517671268,14.57582322,145.53,145.52,13.38]
[1746517676278,21.44725866,145.53,145.52,13.38]
[1746517677086,40.09690752,145.53,145.52,13.38]
[1746517677306,54.67273074,145.53,145.52,13.38]
[1746517677774,40.09690752,145.53,145.52,13.38]
[1746517680047,54.67273074,145.53,145.52,13.38]
[1746517680560,47.8012953,145.53,145.52,13.38]
[1746517681377,47.8012953,145.53,145.5,13.38]
[1746517681670,14.57582322,145.51,145.5,13.38]
[1746517684869,14.57582322,145.51,145.5,20.25285223]
[1746517687267,14.57582322,145.51,145.5,13.38]
[1746517689273,14.57582322,145.52,145.5,20.25285223]
[1746517689658,6.87121359,145.54,145.5,20.25285223]
[1746517689659,1.6055,145.58,145.51,14.57582322]
[1746517689855,1.6055,145.58,145.55,14.57582322]
[1746517690058,1.6055,145.58,145.55,13.38]
[1746517690570,33.22547208,145.57,145.55,13.38]
[1746517690775,33.22547208,145.56,145.55,13.38]
[1746517691173,40.09549131,145.56,145.51,13.38]
[1746517691377,14.57582322,145.54,145.51,13.38]
[1746517691775,18.64964886,145.54,145.51,13.38]
[1746517692386,33.22547208,145.54,145.51,13.38]
[1746517693684,33.22547208,145.54,145.51,20.25235667]
[1746517693979,14.57582322,145.55,145.51,34.82817989]
[1746517694287,14.57582322,145.56,145.52,14.57582322]
[1746517694463,14.57582322,145.56,145.53,6.87143544]
[1746517694664,14.57582322,145.57,145.53,21.44725866]
[1746517694867,27.6055,145.58,145.54,14.57582322]
[1746517695075,16.18132322,145.58,145.54,14.57582322]
[1746517695459,14.57582322,145.57,145.53,21.44725866]
[1746517695660,14.57582322,145.56,145.52,21.44770111]
[1746517695855,14.57582322,145.56,145.52,6.87187789]
[1746517696076,18.64964886,145.57,145.53,14.57582322]
[1746517696878,18.64964886,145.57,145.53,21.44683688]
[1746517697380,14.57582322,145.57,145.53,21.44683688]
[1746517698859,14.57582322,145.57,145.53,6.87101366]
[1746517700178,14.57582322,145.56,145.53,6.87101366]
[1746517702683,14.57582322,145.57,145.53,21.44683688]
[1746517703391,14.57582322,145.57,145.53,38.62542548]
[1746517703688,1.525,145.61,145.56,14.57582322]
[1746517703990,14.57582322,145.6,145.58,6.86907542]
[1746517705693,16.10082322,145.61,145.58,6.86907542]
[1746517705985,14.57582322,145.62,145.58,21.44489864]
[1746517706890,14.57582322,145.62,145.58,6.86907542]
[1746517707517,14.57582322,145.61,145.58,6.86907542]
[1746517707671,25.51641196,145.63,145.58,6.86907542]
[1746517707871,14.57582322,145.61,145.58,6.86907542]
[1746517708869,14.57582322,145.62,145.58,6.86907542]
[1746517709078,14.57582322,145.62,145.58,35.04489864]
[1746517709373,14.57582322,145.63,145.59,14.57582322]
[1746517709588,14.57582322,145.62,145.58,35.04489864]
[1746517710586,14.57582322,145.59,145.58,13.6]
[1746517710790,14.57582322,145.59,145.57,20.24938227]
[1746517711194,14.57582322,145.58,145.55,6.87024182]
[1746517711376,14.57582322,145.56,145.55,6.87024182]
[1746517711697,14.57582322,145.6,145.55,6.87024182]
[1746517711698,14.57582322,145.6,145.55,34.82606504]
[1746517711889,14.57582322,145.6,145.56,14.57582322]
[1746517712373,14.57582322,145.6,145.57,6.86954729]
[1746517713477,14.57582322,145.58,145.56,13.6]
[1746517713679,14.57582322,145.57,145.56,13.6]
[1746517714283,14.57582322,145.58,145.56,20.47001923]
[1746517714697,14.57582322,145.57,145.55,20.25028339]
[1746517714891,14.57582322,145.56,145.55,13.38]
[1746517715283,33.22547208,145.56,145.55,13.38]
[1746517716996,40.09549131,145.56,145.55,13.38]
[1746517717295,54.67131453,145.56,145.51,13.38]
[1746517717496,14.57582322,145.52,145.51,13.38]
[1746517717677,23.33617534,145.52,145.51,13.38]
[1746517718597,23.33617534,145.52,145.51,20.2523799]
[1746517719097,23.33617534,145.52,145.51,13.38]
[1746517720603,23.33617534,145.52,145.51,20.2523799]
[1746517720902,23.33617534,145.52,145.51,13.38]
[1746517724997,23.33617534,145.52,145.51,20.2523799]
[1746517725694,23.33617534,145.52,145.51,13.38]
[1746517725887,1.6376,145.55,145.51,43.58845444]
[1746517726099,18.64964886,145.57,145.54,23.33617534]
[1746517726787,1.5738,145.59,145.56,23.33617534]
[1746517726993,1.5486,145.63,145.58,23.33617534]
[1746517727188,41.9858242,145.62,145.58,23.33617534]
[1746517727408,18.64964886,145.62,145.59,23.33617534]
[1746517727591,1.5486,145.63,145.6,23.33617534]
[1746517727790,8.41557809,145.63,145.6,23.33617534]
[1746517727990,31.75175343,145.63,145.59,23.33617534]
[1746517729311,8.41557809,145.63,145.6,23.33617534]
[1746517729490,31.75175343,145.63,145.59,23.33617534]
[1746517730084,31.75175343,145.63,145.59,30.20467392]
[1746517730403,24.88477534,145.63,145.59,30.20467392]
[1746517731102,1.5486,145.63,145.59,30.20467392]
[1746517731303,23.33617534,145.64,145.6,23.33617534]
[1746517731617,18.64964886,145.65,145.61,23.33617534]
[1746517731819,1.5448,145.7,145.64,23.33617534]
[1746517731988,1.5448,145.7,145.62,13.4]
[1746517731989,41.9858242,145.69,145.65,23.33617534]
[1746517732480,41.9858242,145.69,145.64,23.33617534]
[1746517732683,23.33617534,145.68,145.64,23.33617534]
[1746517734510,30.20074242,145.68,145.64,23.33617534]
[1746517738203,25.51372303,145.69,145.65,23.33617534]
[1746517738382,48.84989837,145.69,145.65,23.33617534]
[1746517738587,23.33617534,145.68,145.64,23.33617534]
[1746517738788,23.33617534,145.68,145.64,30.20240197]
[1746517739905,30.20067272,145.68,145.64,23.33617534]
[1746517740112,23.33617534,145.67,145.63,36.93617534]
[1746517740982,23.33617534,145.66,145.63,13.6]
[1746517743413,30.20150803,145.66,145.63,13.6]
[1746517743614,23.33617534,145.66,145.63,13.6]
[1746517743909,23.33617534,145.65,145.63,13.6]
[1746517745023,23.33617534,145.64,145.62,13.4]
[1746517745609,30.20172118,145.66,145.62,36.73617534]
[1746517745908,30.20172118,145.66,145.62,27.95130572]
[1746517745909,14.55130572,145.66,145.62,27.95130572]
[1746517746092,14.55130572,145.64,145.62,13.4]
[1746517746587,14.55130572,145.65,145.62,13.4]
[1746517746789,14.55130572,145.63,145.62,13.4]
[1746517746992,33.20095458,145.63,145.58,13.6]
[1746517747215,18.64964886,145.63,145.59,13.4]
[1746517747514,14.55130572,145.61,145.59,13.4]
[1746517748918,14.55130572,145.6,145.59,13.4]
[1746517749616,14.55130572,145.6,145.56,13.4]
[1746517749617,18.64964886,145.59,145.56,13.4]
[1746517749803,41.97138001,145.57,145.56,13.4]
[1746517750114,41.97138001,145.57,145.52,3.58348859]
[1746517750115,18.64964886,145.56,145.52,13.4]
[1746517750321,23.32173115,145.53,145.52,13.4]
[1746517751622,23.32173115,145.53,145.52,20.27190764]
[1746517752111,23.32173115,145.54,145.52,20.27190764]
[1746517752828,25.51919615,145.57,145.52,13.4]
[1746517753122,41.97138001,145.53,145.52,13.4]
[1746517758121,18.64964886,145.53,145.52,13.4]
[1746517758309,18.64964886,145.56,145.52,13.4]
[1746517758509,18.64964886,145.54,145.52,13.4]
[1746517758837,23.32173115,145.54,145.52,13.4]
[1746517759224,41.97138001,145.53,145.52,13.4]
[1746517759814,23.32173115,145.53,145.52,13.4]
[1746517760132,18.64964886,145.55,145.52,20.27190764]
[1746517760434,18.64964886,145.55,145.52,43.59363879]
[1746517760739,41.97138001,145.55,145.52,20.27190764]
[1746517760912,18.64964886,145.55,145.52,20.27190764]
[1746517761238,18.64964886,145.56,145.52,13.4]
[1746517761440,23.32173115,145.53,145.52,13.4]
[1746517764053,23.32173115,145.54,145.52,13.4]
[1746517764744,18.64964886,145.53,145.52,13.4]
[1746517764952,26.0,145.57,145.52,13.4]
[1746517765158,18.64964886,145.56,145.52,36.72173115]
[1746517765448,41.97138001,145.56,145.52,33.87190764]
[1746517766248,26.0,145.57,145.53,23.32173115]
[1746517766645,49.32173115,145.57,145.53,23.32173115]
[1746517767148,23.32173115,145.55,145.52,27.0]
[1746517768553,18.64964886,145.56,145.52,33.87186527]
[1746517768749,41.97138001,145.53,145.48,253.34326418]
[1746517768931,23.32173115,145.52,145.49,13.5]
[1746517769126,41.97138001,145.53,145.49,13.5]
[1746517769332,18.64964886,145.57,145.52,23.32173115]
[1746517769526,18.64964886,145.57,145.54,23.32173115]
[1746517769837,20.15564886,145.58,145.54,36.82173115]
[1746517770222,20.15564886,145.58,145.55,23.32173115]
[1746517770963,20.15564886,145.58,145.54,36.82173115]
[1746517771455,20.15564886,145.58,145.55,6.87049124]
[1746517771655,43.47738001,145.58,145.55,6.87049124]
[1746517771855,34.72473732,145.58,145.55,6.87049124]
[1746517772824,18.64964886,145.6,145.55,35.0395797]
[1746517773050,14.56908846,145.58,145.55,20.47049124]
[1746517773958,14.56908846,145.57,145.55,13.6]
[1746517774837,26.0,145.61,145.56,14.56908846]
[1746517775044,22.12298846,145.62,145.58,14.56908846]
[1746517775243,14.56908846,145.61,145.57,14.56908846]
[1746517775638,14.56908846,145.58,145.55,13.6]
[1746517775842,14.56908846,145.56,145.54,13.5]
[1746517776753,21.43917089,145.56,145.54,13.5]
[1746517777059,14.56908846,145.55,145.54,13.5]
[1746517778063,21.4395797,145.55,145.54,13.5]
[1746517778425,14.56908846,145.55,145.54,13.5]
[1746517779941,40.08922856,145.55,145.54,13.5]
[1746517780554,1.5866,145.56,145.54,13.5]
[1746517781147,14.56908846,145.58,145.54,13.5]
[1746517781348,14.56908846,145.57,145.54,13.5]
[1746517782577,14.56908846,145.57,145.54,20.37077232]
[1746517783443,33.21873732,145.58,145.54,20.37077232]
[1746517783648,33.21873732,145.59,145.55,14.56908846]
[1746517783966,18.64964886,145.59,145.55,14.56908846]
[1746517784364,18.64964886,145.59,145.55,21.43920395]
[1746517784662,22.99431025,145.6,145.55,35.03920395]
[1746517784865,14.56908846,145.59,145.55,35.03920395]
[1746517785062,14.56908846,145.58,145.55,20.47011549]
[1746517785269,1.5569,145.6,145.57,14.56908846]
[1746517785640,1.5569,145.6,145.55,35.03920395]
[1746517785641,16.12598846,145.6,145.55,35.03920395]
[1746517786741,14.56908846,145.58,145.55,20.47011549]
[1746517786969,16.12598846,145.6,145.56,21.43885767]
[1746517788065,1.5569,145.6,145.56,21.43885767]
[1746517788667,14.56908846,145.59,145.56,6.86976921]
[1746517788860,1.5569,145.6,145.56,21.43885767]
[1746517789947,16.12598846,145.6,145.56,6.86976921]
[1746517790368,1.5569,145.6,145.56,21.43885767]
[1746517790670,14.56908846,145.58,145.56,6.86976921]
[1746517790966,16.12598846,145.6,145.56,20.46976921]
[1746517791259,14.56908846,145.59,145.56,20.46976921]
[1746517791444,14.56908846,145.59,145.56,13.6]
[1746517791945,14.56908846,145.59,145.56,20.46981758]
[1746517792461,66.08643956,145.61,145.56,35.03890604]
[1746517792663,14.56908846,145.6,145.56,20.46981758]
[1746517793570,66.08643956,145.61,145.56,35.03890604]
[1746517793971,59.21873732,145.61,145.56,35.03890604]
[1746517794171,59.21873732,145.61,145.57,14.56908846]
[1746517794673,14.56908846,145.6,145.56,13.6]
[1746517794855,14.56908846,145.58,145.56,13.6]
[1746517795056,14.56908846,145.57,145.56,13.6]
[1746517795378,14.56908846,145.57,145.54,33.97074814]
[1746517796763,14.56908846,145.56,145.54,33.97074814]
[1746517796956,14.56908846,145.57,145.54,33.97074814]
[1746517797996,18.64964886,145.61,145.56,14.56908846]
[1746517798165,18.64964886,145.61,145.57,14.56908846]
[1746517799180,18.64964886,145.61,145.57,21.438457]
[1746517799879,18.64964886,145.61,145.57,6.86936854]
[1746517799880,41.94777481,145.61,145.57,6.86936854]
[1746517800477,23.29812595,145.59,145.57,6.86936854]
[1746517800780,41.94777481,145.61,145.57,6.86936854]
[1746517800981,48.8154997,145.61,145.57,6.86936854]
[1746517801281,23.29812595,145.6,145.57,6.86936854]
[1746517801673,48.8154997,145.61,145.57,6.86936854]
[1746517801982,41.94777481,145.61,145.57,6.86936854]
[1746517802486,23.29812595,145.6,145.56,20.46981062]
[1746517802981,23.29812595,145.59,145.56,20.46981062]
[1746517803653,6.86869333,145.59,145.57,13.66]
[1746517803980,23.29812595,145.58,145.57,13.66]
[1746517804373,41.94777481,145.58,145.57,13.66]
[1746517807582,48.81685023,145.58,145.57,13.66]
[1746517807781,18.64964886,145.57,145.52,20.47178401]
[1746517807987,23.29812595,145.55,145.53,13.66]
[1746517808199,23.29812595,145.55,145.53,20.53143142]
[1746517812615,23.29812595,145.55,145.53,13.66]
[1746517814071,23.29812595,145.54,145.53,13.66]
[1746517815301,18.64964886,145.58,145.53,13.66]
[1746517815486,23.29812595,145.55,145.53,13.66]
[1746517815670,23.29812595,145.56,145.53,20.53139819]
[1746517815869,23.29812595,145.57,145.53,20.53139819]
[1746517816709,25.51890504,145.58,145.53,20.53139819]
[1746517816869,23.29812595,145.57,145.53,43.82952414]
[1746517817709,23.29812595,145.56,145.53,20.53139819]
[1746517818005,23.29812595,145.57,145.53,20.53139819]
[1746517818798,23.29812595,145.56,145.53,20.53139819]
[1746517819089,23.29812595,145.57,145.53,20.53139819]
[1746517819795,14.57123379,145.57,145.53,20.53139819]
[1746517820794,14.57123379,145.56,145.53,20.53139819]
[1746517820998,14.57123379,145.57,145.53,20.53139819]
[1746517823696,14.57123379,145.56,145.53,20.53139819]
[1746517823883,14.57123379,145.57,145.53,20.53139819]
[1746517825790,14.57123379,145.56,145.53,20.53139819]
[1746517825998,14.57123379,145.57,145.53,20.53139819]
[1746517826600,1.6379,145.59,145.56,14.57123379]
[1746517826892,18.64964886,145.61,145.57,14.57123379]
[1746517827098,14.57123379,145.6,145.56,14.57123379]
[1746517827480,18.64964886,145.61,145.57,14.57123379]
[1746517827680,33.22088265,145.61,145.56,14.57123379]
[1746517828600,33.22088265,145.61,145.56,21.44082497]
[1746517828780,14.57123379,145.59,145.56,6.86959118]
[1746517829081,33.22088265,145.61,145.56,21.44082497]
[1746517829581,33.22088265,145.61,145.57,14.57123379]
[1746517829778,14.57123379,145.6,145.58,13.58]
[1746517829977,14.57123379,145.61,145.58,13.58]